Cogmind - Beta 14 @@@ ROGUE MODE // 2024.09.12 @ 03:13:22 Player: Daffa0360 Result: Destroyed by L-41 Fighter with Axe Performance ------------- Evolutions (3) 1500 Regions Visited (5) 1000 Robots Destroyed (71) 355 Value Destroyed (2587) 2587 Prototype IDs (11) 220 Alien Tech Used (0) 0 Bonus (258) 258 TOTAL SCORE: 5920 Bonus ------- High Alert Combat Kills 258 Cogmind --------- Core Integrity 0/700 Matter 127/300 Energy 70/100 System Corruption 5% Temperature Cool (0) Movement Core (450) Ox8 Location -7/Factory Parts ------- > --- POWER (1) -------- (None) > --- PROPULSION (2) --- (None) > --- UTILITY (8) ------ Large Storage Unit Improved Terrain Scan Processor Targeting Computer Advanced Targeting Computer Core Analyzer Hacking Suite Hacking Suite > --- WEAPON (2) ------- Power Maul Makeshift Sword > --- INVENTORY (15) --- Subdweller Power Source Subdweller Power Source Structural Scanner Improved Sensor Array Scrap Shield System Shield System Shield Subdweller Beam Cannon Gauss Rifle Subdweller Shrapnel Launcher Improved Remote Datajack Plasma Cutter Multitool Peak State ------------ > --- POWER ------------ Deuterium Engine > --- PROPULSION ------- Medium Treads Improved Titanium Leg > --- UTILITY ---------- Large Storage Unit Improved Terrain Scan Processor Targeting Computer Advanced Targeting Computer Improved Melee Analysis Suite Core Analyzer Hacking Suite Hacking Suite > --- WEAPON ----------- Advanced Assault Cannon Makeshift Sword > --- INVENTORY -------- Subdweller Power Source Subdweller Power Source Structural Scanner Target Analyzer Scrap Shield System Shield Subdweller Beam Cannon Subdweller Machine Gun Subdweller Shrapnel Launcher Heavy Rocket Launcher Improved Datajack Remote Datajack Multitool [Rating: 44] Favorites ----------- Power Deuterium Engine Engine Deuterium Engine Power Core Nuclear Core Propulsion Wheel Treads Light Treads Leg Improved Titanium Leg Wheel Wheel Flight Unit Improved Flight Unit Utility Large Storage Unit Device Seismic Detector Storage Large Storage Unit Processor Targeting Computer Hackware Hacking Suite Protection Improved Light Armor Plating Weapon Makeshift Sword Energy Gun Small Laser Energy Cannon Subdweller Beam Cannon Ballistic Gun Gauss Rifle Ballistic Cannon Advanced Assault Cannon Launcher Heavy Rocket Launcher Impact Weapon Power Maul Slashing Weapon Makeshift Sword Build | -11 -10 -10 -10 -8 -7 ------- Run | Yrd Mat Min Sub Mat Fac Slots Evolved 6 | . . . . 4 2 Power . | . . . . . . Propulsion . | . . . . . . Utility 6 | . . . . 4 2 Weapon . | . . . . . . Parts Attached 69 | 2 2 . 2 26 37 Power 9 | . . . . 4 5 Engine 5 | . . . . 2 3 Core 4 | . . . . 2 2 Reactor . | . . . . . . Propulsion 15 | . 1 . 1 7 6 Treads 5 | . . . . 3 2 Leg 2 | . . . . . 2 Wheel 7 | . 1 . 1 3 2 Hover . | . . . . . . Flight 1 | . . . . 1 . Utility 23 | 2 1 . . 11 9 Device 8 | 2 . . . 4 2 Storage 2 | . 1 . . 1 . Processor 6 | . . . . 1 5 Hackware 3 | . . . . 1 2 Protection 4 | . . . . 4 . Artifact . | . . . . . . Weapon 22 | . . . 1 4 17 Energy Gun 3 | . . . . 3 . Energy Cannon 1 | . . . . . 1 Ballistic Gun 4 | . . . . . 4 Ballistic Cannon 5 | . . . . . 5 Launcher 3 | . . . . . 3 Special Weapon . | . . . . . . Impact Weapon 1 | . . . . . 1 Slashing Weapon 5 | . . . 1 1 3 Piercing Weapon . | . . . . . . Special Melee Weapon . | . . . . . . Unidentified Prototypes 4 | . . . . 4 . Parts Lost 20 | . . 1 . 6 13 Power 4 | . . 1 . . 3 Propulsion 5 | . . . . 3 2 Utility 7 | . . . . 3 4 Weapon 4 | . . . . . 4 Highest Loss Streak 5 | . . 1 . 2 5 To Critical Strikes . | . . . . . . Average Slot Usage (%) 86 | . 95 79 72 85 88 Engine 4 | . 14 8 . 3 3 Core 2 | . . . . 5 2 Treads 4 | . . . . 10 3 Leg 3 | . 19 . . . 3 Wheel 5 | . 4 14 15 4 3 Device 8 | . 14 14 14 15 1 Storage 9 | . 14 14 14 9 7 Processor 17 | . . . . 8 32 Hackware 7 | . . . . 4 14 Protection 2 | . . . . 5 1 Energy Gun 8 | . 28 28 16 9 . Ballistic Cannon 2 | . . . . . 5 Slashing Weapon 5 | . . . 11 8 4 Peak Build Rating 44 | 9 8 7 12 28 44 Average Rating 25 | 6 7 6 9 23 38 On Entrance 10 | 6 7 6 6 12 27 Naked Turns . | . . . . . . Heaviest Build 47 | 12 27 27 24 47 43 Greatest Support 40 | 20 20 10 30 40 38 Greatest Overweight (x) 12 | . 2 2 2 12 12 Average Overweight (x) 1 | . . 2 1 1 1 Largest Inventory Capacity 15 | 8 15 15 15 15 15 Average Capacity 14 | 8 10 15 15 15 15 Most Carried 15 | 8 8 9 15 15 15 Average Carried 13 | 6 7 8 13 14 14 Final Capacity 15 | 8 15 15 15 15 15 Final Carried 15 | 6 7 9 14 15 14 Class Distribution -------------------- 59% | Mutant 40% | Hacker-Mutant Dominant Class ---------------- Mutant | -10/Materials Mutant | -10/Mines Mutant | -10/Subcaves Mutant | -8/Materials Hacker-Mutant | -7/Factory Resources | -11 -10 -10 -10 -8 -7 ----------- Run | Yrd Mat Min Sub Mat Fac Matter Collected 1525 | 200 20 15 10 225 1055 Remotely . | . . . . . . Salvage Created 2315 | 175 50 49 30 883 1128 Parts 148 | 14 2 5 1 53 73 Haulers Intercepted 3 | . . . . 2 1 Recyclers Shooed 3 | 1 . . . 1 1 Parts Field Recycled . | . . . . . . Retrieved Matter . | . . . . . . Parts Self-Destructed 8 | . . . 8 . . Prevented . | . . . . . . Kills | -11 -10 -10 -10 -8 -7 ------- Run | Yrd Mat Min Sub Mat Fac Combat Hostiles Destroyed 56 | . 1 3 1 17 34 Melee 17 | . . . 1 13 3 Guns 11 | . 1 3 . 3 4 Cannons 18 | . . . . . 18 AOE 9 | . . . . . 9 Classes Destroyed 14 | 2 1 1 1 3 6 Worker 2 | . . . . 1 1 Builder 1 | . . . . . 1 Tunneler 5 | 5 . . . . . Hauler 3 | . . . . 2 1 Recycler 2 | 1 . . . 1 . Operator 1 | . . . . . 1 Watcher 1 | . . . . . 1 Swarmer 13 | . . 3 . 4 6 Grunt 19 | . 1 . . 5 13 Duelist 3 | . . . . . 3 Sentry 10 | . . . . 8 2 Hunter 1 | . . . . . 1 Programmer 9 | . . . . . 9 Subdweller 1 | . . . 1 . . Best Kill Streak 4 | 2 1 2 1 4 4 Combat Bots Only 4 | . 1 2 1 4 4 Max Kills in Single Turn 3 | 1 1 1 1 1 3 Gunslinging . | . . . . . . Exploded 3 | . . . . . 3 Melee 1 | . . . 1 1 1 Uniques/NPCs Destroyed . | . . . . . . Combat | -11 -10 -10 -10 -8 -7 -------- Run | Yrd Mat Min Sub Mat Fac Hostile Shots Fired 382 | . 9 22 1 121 229 Missed 101 | . 2 2 . 25 72 Damage Taken 4082 | . 71 159 19 977 2856 Core 1016 | . 31 27 . 228 730 Absorbed by Shields 332 | . . . . 332 . Regen/Repaired (Parts) 247 | . . . . 129 118 Core Remaining (%) 78 | 100 . . 76 58 . Volleys Fired 188 | 23 6 10 . 14 135 Largest 2 | 2 2 2 . 1 1 Hottest 80 | 80 80 80 . 61 48 Shots Fired 200 | 24 9 15 . 14 138 Gun 80 | 24 9 15 . 14 18 Cannon 113 | . . . . . 113 Launcher 7 | . . . . . 7 Special . | . . . . . . Kinetic 131 | . . . . . 131 Thermal 47 | 23 6 5 . 13 . Explosive 7 | . . . . . 7 Electromagnetic 15 | 1 3 10 . 1 . Robot Hit Streak 15 | 4 3 5 . 6 15 Robot Miss Streak 3 | 2 1 3 . 1 2 Penetration Max 1 | . . . . . 1 Secondary Targets 1 | . . 1 . . . Max Gunslinging Chain 1 | . . 1 . . . Shots Hit Robots 211 | 14 6 8 2 68 113 Core Hits 97 | 7 2 3 1 20 64 Critical Kills . | . . . . . . Critical Parts Destroyed 1 | . . . . . 1 Critical Strikes 20 | . . . . 9 11 Burn 1 | . . . . 1 . Blast 9 | . . . . . 9 Smash 1 | . . . . . 1 Sever 9 | . . . . 8 1 Melee Attacks 141 | . . . 25 90 26 Impact 2 | . . . . . 2 Slashing 139 | . . . 25 90 24 Piercing . | . . . . . . Sneak Attacks 7 | . . . . 6 1 Combat Hostiles . | . . . . . . Follow-up Attacks . | . . . . . . Damage Inflicted 7123 | 158 74 96 69 2471 4255 Guns 741 | 158 74 96 . 152 261 Cannons 2527 | . . . . . 2527 Explosions 977 | . . . . . 977 Melee 2878 | . . . 69 2319 490 Ramming . | . . . . . . Kinetic 2788 | . . . . . 2788 Thermal 366 | 158 34 22 . 152 . Explosive 919 | . . . . . 919 Electromagnetic 172 | . 40 74 . . 58 Impact 96 | . . . . . 96 Slashing 2782 | . . . 69 2319 394 Piercing . | . . . . . . Highest Corruption 5 | . . . . . 5 Average Corruption 3 | . . . . . 3 Corruption Purged 4 | . . . . . 4 Corruption Blocked . | . . . . . . Effects 62 | . . . . . 62 Message Errors 20 | . . . . . 20 Matter Fused 12 | . . . . . 12 Heat Flow Errors 6 | . . . . . 6 Energy Discharges 8 | . . . . . 8 Parts Rejected 1 | . . . . . 1 Data Loss (minor) 5 | . . . . . 5 Data Loss (major) 4 | . . . . . 4 Misfires 4 | . . . . . 4 Alerts 1 | . . . . . 1 Weapon Failures 1 | . . . . . 1 Overload Shots . | . . . . . . Overflow Damage 396 | . . . . 101 295 Projectiles 114 | . . . . . 114 Explosions 101 | . . . . . 101 Melee 181 | . . . . 101 80 Knockbacks 22 | . . . . . 22 Impact 1 | . . . . . 1 Kinetic 21 | . . . . . 21 Secondary . | . . . . . . Self-Inflicted Damage 308 | . . . . . 308 Shots 5 | . . . . . 5 Rammed . | . . . . . . Targets Rammed . | . . . . . . Kicked . | . . . . . . Crushed . | . . . . . . Highest Temperature 267 | 18 66 25 . 128 267 Average Temperature 41 | 14 31 17 . 46 45 Received Heat Transfer 1061 | . 42 6 . 431 582 Siege Activations . | . . . . . . Robots Corrupted . | . . . . . . Combat Hostiles . | . . . . . . Parts Fried 2 | . . . . . 2 Impact Corruptions 2 | . . . . . 2 Robots Melted 1 | . . . . 1 . Combat Hostiles 1 | . . . . 1 . Parts Melted 4 | 1 . . . 3 . Heat Transferred 882 | 350 75 50 . 407 . Parts Sabotaged . | . . . . . . Parts Stolen . | . . . . . . Parts Stripped . | . . . . . . Power Chain Reactions . | . . . . . . Alert | -11 -10 -10 -10 -8 -7 ------- Run | Yrd Mat Min Sub Mat Fac Peak Influence 822 | 30 63 90 . 313 822 Initial 103 | . 19 . . . 103 Average 132 | 15 25 7 . 115 188 Maximum Alert Level 3 | . . . . 1 3 Low Security (%) 81 | 100 100 100 . 73 77 Level 1 8 | . . . . 26 2 Level 2 5 | . . . . . 10 Level 3 4 | . . . . . 8 Level 4 . | . . . . . . Level 5 . | . . . . . . High Security . | . . . . . . Max Security . | . . . . . . Squads Dispatched 14 | . 1 . . 1 12 Investigation 3 | . 1 . . 1 1 Extermination 7 | . . . . . 7 Reinforcement 3 | . . . . . 3 Assault 1 | . . . . . 1 Garrison . | . . . . . . Intercept . | . . . . . . Searches Triggered . | . . . . . . Construction Impeded 1 | . . . . . 1 Haulers Reinforced . | . . . . . . Active Scanning Responses . | . . . . . . Cargo Convoy Interrupts . | . . . . . . Stealth | -11 -10 -10 -10 -8 -7 --------- Run | Yrd Mat Min Sub Mat Fac Distress Signals 4 | . . . . 2 2 Communications Jammed . | . . . . . . Distress Signals . | . . . . . . Times Spotted 102 | . 1 6 2 33 60 Peak Tracking Total 7 | . 1 3 1 5 7 Tactical Retreats 8 | . . 1 1 3 3 Traps | -11 -10 -10 -10 -8 -7 ------- Run | Yrd Mat Min Sub Mat Fac Traps Triggered 7 | . 1 . . 1 5 Indirectly . | . . . . . . Trap Hack Attempts . | . . . . . . Triggered . | . . . . . . Disarmed . | . . . . . . Reprogrammed . | . . . . . . Reused . | . . . . . . Traps Extracted . | . . . . . . Installed . | . . . . . . Triggered . | . . . . . . Machines | -11 -10 -10 -10 -8 -7 ---------- Run | Yrd Mat Min Sub Mat Fac Machines Disabled 10 | . . . . . 10 Max in Single Turn 3 | . . . . . 3 Machines Repaired . | . . . . . . Machines Dismantled . | . . . . . . Machines Sabotaged . | . . . . . . Overloaded Fab Kills . | . . . . . . Hacking | -11 -10 -10 -10 -8 -7 --------- Run | Yrd Mat Min Sub Mat Fac Machines Accessed 23 | . 4 . . 7 12 Terminals 16 | . 4 . . 6 6 Fabricators 2 | . . . . . 2 Repair Stations 4 | . . . . 1 3 Recycling Units . | . . . . . . Scanalyzers 1 | . . . . . 1 Garrison Access . | . . . . . . Total Hacks 64 | . 7 . . 31 26 Successful 37 | . 3 . . 20 14 Failed 27 | . 4 . . 11 12 Catastrophic 3 | . 1 . . 1 1 Database Lockouts . | . . . . . . Manual 15 | . 1 . . 11 3 Terminals 44 | . 7 . . 25 12 Fabricators 2 | . . . . . 2 Repair Stations 14 | . . . . 6 8 Recycling Units . | . . . . . . Scanalyzers 4 | . . . . . 4 Garrison Access . | . . . . . . Terminal Hacks 19 | . 3 . . 11 5 Record 3 | . 2 . . 1 . Part Schematic 1 | . . . . 1 . Prototype ID Bank 3 | . 1 . . 1 1 Branch Access Points 2 | . . . . 1 1 Alert Level 4 | . . . . 3 1 Unreport Threat 2 | . . . . 1 1 Locate Traps 2 | . . . . 1 1 Dispatch Records 2 | . . . . 2 . Fabricator Hacks 1 | . . . . . 1 Network Status 1 | . . . . . 1 Repair Station Hacks 12 | . . . . 6 6 Scan Component 6 | . . . . 3 3 Repair 6 | . . . . 3 3 Recycling Unit Hacks . | . . . . . . Scanalyzer 2 | . . . . . 2 Insert Component 1 | . . . . . 1 Analyze 1 | . . . . . 1 Garrison Access Hacks . | . . . . . . Unauthorized Hacks 3 | . . . . 3 . Terminals 3 | . . . . 3 . Botnet 2 | . . . . 2 . Skim 1 | . . . . 1 . Fabricators . | . . . . . . Repair Stations . | . . . . . . Recycling Units . | . . . . . . Scanalyzers . | . . . . . . Garrison Access . | . . . . . . Data Cores Recovered . | . . . . . . Used . | . . . . . . Hacking Detections 21 | . 4 . . 6 11 Full Trace Events . | . . . . . . Feedback Events . | . . . . . . Feedback Blocked . | . . . . . . Robot Schematics Acquired . | . . . . . . Robots Built . | . . . . . . Authchips . | . . . . . . Time . | . . . . . . Total Robot Build Rating . | . . . . . . Part Schematics Acquired 2 | . . . . 1 1 Parts Built . | . . . . . . Authchips . | . . . . . . Time . | . . . . . . Total Part Build Rating . | . . . . . . Parts Repaired 6 | . . . . 3 3 Time 216 | . . . . 120 96 Parts Recycled . | . . . . . . Recycled Matter . | . . . . . . Retrieved Matter . | . . . . . . Retrieved Components . | . . . . . . Parts Scanalyzed 1 | . . . . . 1 Part Schematics Acquired 1 | . . . . . 1 Parts Damaged . | . . . . . . Bothacking | -11 -10 -10 -10 -8 -7 ------------ Run | Yrd Mat Min Sub Mat Fac Used RIF Installer . | . . . . . . Robots Hacked . | . . . . . . Non-combat . | . . . . . . Combat . | . . . . . . Robot Hacks Applied . | . . . . . . Relay Couplers Released 4 | . . . . . 4 Programmers 4 | . . . . . 4 Fabnet Peak Effective % . | . . . . . . Robots Rewired . | . . . . . . Allies Hacked . | . . . . . . Hacks Repelled . | . . . . . . Allies | -11 -10 -10 -10 -8 -7 -------- Run | Yrd Mat Min Sub Mat Fac Total Allies . | . . . . . . Largest Group . | . . . . . . Highest-Rated Group . | . . . . . . Highest-Rated Ally . | . . . . . . Total Orders . | . . . . . . Ally Attacks . | . . . . . . Total Damage . | . . . . . . Kills . | . . . . . . Allies Corrupted . | . . . . . . Allies Melted . | . . . . . . Intel | -11 -10 -10 -10 -8 -7 ------- Run | Yrd Mat Min Sub Mat Fac Robot Analysis Total . | . . . . . . Derelict Logs Recovered 2 | . . 1 1 . . Drone Launches . | . . . . . . Drone Recoveries . | . . . . . . Exploration | -11 -10 -10 -10 -8 -7 ------------- Run | Yrd Mat Min Sub Mat Fac Turns Passed 7289 | 165 601 606 694 1848 3375 Spaces Moved 4274 | 86 495 509 586 872 1726 Core 18 | . . . . 4 14 Treads 414 | . . . . 357 57 Legs 1061 | 86 321 . . . 654 Wheels 2781 | . 174 509 586 511 1001 Hover . | . . . . . . Flight . | . . . . . . Fastest Speed 95 | 120 110 110 95 110 100 Average Speed 138 | 120 116 110 107 150 157 Slowest Speed 650 | 120 120 110 110 650 650 Overloaded Moves . | . . . . . . Propulsion Burnouts . | . . . . . . Robots Hopped . | . . . . . . Cave-ins Triggered . | . . . . . . Exploration Rate (%) 48 | 5 61 87 30 59 47 Regions Visited 5 Branch Regions 2 Pre-discovered Areas . | . . . . . . Known Exits Taken 1 | . . . . 1 . Unknown Exits Taken 4 | 1 1 1 1 . . Scrap Searched 6 | . . 2 4 . . Spaces Dug 11 | . . . . 7 4 Terrain Destroyed 167 | . . . . 7 160 Melee 11 | . . . . 7 4 Projectile 11 | . . . . . 11 AOE 145 | . . . . . 145 Terrain Rammed . | . . . . . . Walls Destroyed . | . . . . . . Machines Disabled . | . . . . . . Actions | -11 -10 -10 -10 -8 -7 --------- Run | Yrd Mat Min Sub Mat Fac Total 5331 | 124 513 540 625 1302 2227 Wait 557 | 8 2 18 2 275 252 Move 4269 | 85 494 508 585 871 1726 Hop . | . . . . . . Pick Up 50 | 3 4 3 8 10 22 Fast Attach 24 | 1 . . . 14 9 Attach 29 | . 1 . 1 8 19 Detach 6 | . . . . 4 2 Swap 16 | 1 1 . 1 4 9 Drop 40 | 3 5 1 3 12 16 Fire 188 | 23 6 10 . 14 135 Melee 141 | . . . 25 90 26 Ram . | . . . . . . Kick . | . . . . . . Crush . | . . . . . . Escape Stasis 11 | . . . . . 11 Rewire . | . . . . . . Trap . | . . . . . . Miscellaneous . | . . . . . . Route ------- -11/Scrapyard -10/Materials (discovered 3 exits: [*Mat x2] / [*Min]) -10/Mines (discovered 2 exits: [*Mat] / [*Sub]) -10/Subcaves -8/Materials (discovered 3 exits: *Fac x3) -7/Factory (discovered 5 exits: [*Fac] / *Sto x2 / *Low x2) History --------- Turn | Location | Event 1 | -11/Scrapyard | Discovered new exit (range 3) 166 | -11/Scrapyard | Entered Materials 317 | -10/Materials | Build established: Mutant 461 | -10/Materials | Discovered new exit (range 5) 491 | -10/Materials | Discovered new exit (range 16) 638 | -10/Materials | Discovered new exit (range 7) 767 | -10/Materials | Entered Mines 787 | -10/Mines | A weapon hastily lodged in a ceiling crevice suddenly fell to the ground 805 | -10/Mines | Received a Rocket Launcher from a helpful Derelict 988 | -10/Mines | Learned location of 1 exit from Materials 1210 | -10/Mines | Discovered new exit (range 9) 1237 | -10/Mines | Discovered new exit (range 9) 1373 | -10/Mines | Entered Subcaves 1433 | -10/Subcaves | Learned 2 Materials zone layouts 1440 | -10/Subcaves | Shifting Twisted Machinery released Sub. Shrapnel Launcher 1462 | -10/Subcaves | Shifting Twisted Machinery released Sub. Power Source 1470 | -10/Subcaves | Shifting Twisted Machinery released Sub. Power Source 1475 | -10/Subcaves | Shifting Twisted Machinery released Sub. Beam Cannon 1492 | -10/Subcaves | Discovered new exit (range 8) 1638 | -10/Subcaves | Disturbed a concealed Subdweller 1883 | -10/Subcaves | Shifting Twisted Machinery released Multitool 1893 | -10/Subcaves | Shifting Twisted Machinery released Spk. Treads 2067 | -10/Subcaves | Entered Materials 2067 | -8/Materials | Evolved 4 slots: Utility x4 2068 | -8/Materials | Identified exit to Factory 2552 | -8/Materials | Discovered exit to Factory (range 11) 3012 | -8/Materials | Discovered exit to Factory (range 5) 3715 | -8/Materials | Repaired Mak. Sword 3754 | -8/Materials | Repaired Imp. Light Armor Plating 3794 | -8/Materials | Repaired Nuclear Core 3915 | -8/Materials | Entered Factory 3915 | -7/Factory | Evolved 2 slots: Utility x2 4257 | -7/Factory | Discovered new exit (range 6) 4272 | -7/Factory | Build established: Hacker-Mutant 4681 | -7/Factory | Lost 5 parts (1p1n2u1w) 5128 | -7/Factory | Discovered new exit (range 14) 5164 | -7/Factory | Discovered new exit (range 5) 5251 | -7/Factory | Build established: Mutant 5490 | -7/Factory | Repaired Adv. Assault Cannon 5530 | -7/Factory | Repaired Deuterium Engine 5571 | -7/Factory | Build established: Hacker-Mutant 5696 | -7/Factory | Core integrity fell below 50% 5788 | -7/Factory | Discovered new exit (range 7) 6659 | -7/Factory | Lost 3 parts (1p1u1w) 6795 | -7/Factory | Repaired Mak. Sword 6860 | -7/Factory | Identified exit to Storage 6860 | -7/Factory | Identified exit to Lower Caves 7115 | -7/Factory | First assault squad dispatched 7144 | -7/Factory | Core integrity fell below 20% 7290 | -7/Factory | Destroyed by L-41 Fighter with Axe Last Messages --------------- 07244_ K-01 Serf cleans the Recycling Unit. 07250_ R-06 Scavenger collects Lgt. Treads. 07251_ C-30 ARC bursts open, deploying its payload. 07251_ G-50 Soldier unfolds itself. 07251_ L-41 Fighter unfolds itself. 07251_ I-36 Angel unfolds itself. 07253_ R-06 Scavenger collects Imp. Heat Sink. 07255_ G-50 Soldier destroyed. 07257_ R-06 Scavenger Com. Wheel blasted off. 07257_ R-06 Scavenger knocked back. 07263_ G-47 Trooper knocked back. 07264_ Arm. Huge Wheel destroyed. 07270_ Assault Cannon destroyed. 07271_ QUXYSNRZY6N5VQQFOSDS>HFKY 07272_ Slug penetrates G-47 Trooper. 07272_ G-47 Trooper destroyed. 07274_ Acquired 52 matter. 07288_ Mic. Nuclear Core destroyed. 07290_ L-41 Fighter Carbon-fiber Leg severed. Map ----- +----------------------------------------------------+ | #!! """ # #?????????????????????????# | | #%%= T" # #?????????????????????????# ]] | | #!!%""" # " " #?????????????????????????# ]] | | #| * # " " #?????????????????????????# ]] | | # # " " #?????????????????????????# | | # " " # " " #?????????????????????????# """ | | # " " # " " #?????????????????????????# """ | | # " " # " " #?????????????????????????# """ | | # " " # " " #?????????????????????????# | | # " " # " " #????? #??????????????? | | # " " # " "?????? #??????????????? | | # " " # ????? ##???????????????########## | | # [ " " # ! ???? ??????????????????# | | # " " # ? ???? #???????????????????# | | # ###+##### #???????????????????# | | #???????????????????# ? | | #???????????????????? | | #???????????????????# | | % #???????????????????# | | #???????????????????# ? | | ############+###########???????????????????##+###? | | ??????# * [ #????????????????????????# ###T | | ??????# ! "" #????????????????????????# | | ??????# """ Y" #????????????????????????# ^ | | ??????# """ "" ##############!%=#???????# | | ??????# """ + m!!@l%!![g%= %*w%% | | ??????# ############## % #???#####+###^ | | ??????# """ """ #????????????????????????????# | | ??????# """ """ #??????????????????????????? + | | ??????# """ """ #?????????????????????????? ## | | ??????# #????????????????????????? ?# | | ????????? #??????????????????????? ??# | | ????????? #?????????????????????? ???# | | ?????????###########??????????????????????? ????# | | ????????????????????????????????????????????????# | | ????????????????????????????????????????????????# | | ????????????????????????????????????????????????## | | ?????????????????????????????????????????????????? | | ?????????????????????????????????????????????????? | | ?????????????????????????????????????????????????? | | ?????????????????????????????????????????????????? | | ????????????????????????????????????????????###### | | ????????????????????????????????????????????# | | ????????????????????????????????????????????# | | ????????????????????????????????????????????# | | ????????????????????????????????????????????# | | ????????????????????????????????????????????# | | ????????????????????????????????############## | | ??????????????????????????????# # | | ??????????????????????????????# + | +----------------------------------------------------+ Best States ------------- Heat Dissipation 34 Energy Generation 15 Energy Capacity 275 Matter Stores 300 Matter Capacity 300 Sight Range 16 Terrain Scan Range 16 Terrain Scan Density 110 Armor Coverage 800 Evasion (%) 55 Targeting Accuracy 13 Melee Accuracy 6 Target Analysis 5 Core Analysis 6 Recoil Reduction 2 Offensive Hacking 20 Defensive Hacking 10 Item Schematics ----------------- Med. Storage Unit | -8/Materials | Hacked Multitool | -7/Factory | Scanalyzed Robot Schematics ------------------ None Fabricated ------------ Nothing Alien Tech Used ----------------- None Achievements -------------- None Challenges ------------ None Game ------ Seed SpreadDispersionLink Manual? 0 Play Time 00:53:48 Cumulative 88.4 hours Start 2024.09.11 @ 20:21:46 End 2024.09.12 @ 03:13:22 Sessions 1 Manual Loads 0 Difficulty Rogue Special Mode None Game No. 141 Rogue 137 Adventurer 4 Explorer 0 Win Type - Total 0 Types 0/0/0/0/0/0/0/0/0 Lore% 40 Gallery% 52 Achievement% 40 Wizard Run 0 Options --------- Layout 2 ASCII 0 Keyboard 0 Movement Mouse Keybinds 0 Fullscreen 2 Font 24/Smallcaps Map View 50x44 Zoom Use 0% Tactical HUD 1 Map Filters NONE Filters NONE Steam 1 RUN: 8a4a1d3e-e97c-4d2c-99dc-34f316e02b0f